fUSD/lending_fUSD_20241105
["ID","MTS","AMOUNT","RATE_DAILY","PERIOD"]
[341358071,1730831082805,-318.18,0.00015518,2]
[341358072,1730831082826,-1458.7036,0.000157,2]
[341358073,1730831082846,-1678.0383,0.000157,2]
[341358074,1730831082865,-24894.9737,0.000157,2]
[341358075,1730831082885,-986.6952,0.000157,2]
[341358076,1730831082905,-1000.0,0.000157,2]
[341358077,1730831082927,-9405.49323228,0.000157,2]
[341358078,1730831082948,-2422.3578,0.000157,2]
[341358079,1730831082970,-100000.0,0.000157,2]
[341358080,1730831082990,-5136.0943,0.000157,2]
[341358081,1730831083023,-272.90464333,0.00015799,2]
[341358082,1730831083061,-69643.6717,0.000158,2]
[341358083,1730831083105,-1000.0,0.000158,2]
[341358084,1730831083141,-1233.3539,0.000158,2]
[341358085,1730831083179,-114294.5389,0.000158,2]
[341358086,1730831083215,-155.03611035,0.000158,2]
[341358087,1730831083254,-26258.5536,0.000159,2]
[341358088,1730831083289,-945.5044,0.000159,2]
[341358089,1730831083321,-7648.5893,0.000159,2]
[341358090,1730831083353,-216.48218439,0.000159,2]
[341358091,1730831083385,-213.89226719,0.0001599,2]
[341358092,1730831083418,-872.12288296,0.00015999,2]
[341358093,1730831083451,-500.0,0.00015999,2]
[341358094,1730831083487,-500.0,0.00015999,2]
[341358095,1730831083522,-509.70824272,0.00015999,2]
[341358096,1730831083556,-726804.24539191,0.00016,2]
[341358097,1730831083588,-151.0,0.00016,2]
[341358098,1730831083620,-151.0,0.00016,2]
[341358099,1730831083661,-151.0,0.00016,2]
[341358100,1730831083706,-151.0,0.00016,2]
[341358101,1730831083742,-151.0,0.00016,2]
[341358102,1730831083778,-151.0,0.00016,2]
[341358103,1730831083812,-151.0,0.00016,2]
[341358104,1730831083845,-151.0,0.00016,2]
[341358105,1730831083878,-151.0,0.00016,2]
[341358106,1730831083912,-151.0,0.00016,2]
[341358107,1730831083947,-276.392268,0.00016,2]
[341358108,1730831083980,-151.0,0.00016,2]
[341358109,1730831084015,-151.0,0.00016,2]
[341358110,1730831084050,-151.0,0.00016,2]
[341358111,1730831084210,-151.0,0.00016,2]
[341358112,1730831084273,-163.60987902,0.00016,2]
[341358113,1730831120166,150.0,9e-05,2]
[341358114,1730831130838,150.0,0.000101,2]
[341358115,1730831130869,150.0,0.000101,2]
[341358116,1730831130901,150.0,0.000101,2]
[341358117,1730831130932,150.0,0.000101,2]
[341358118,1730831130963,150.0,0.000101,2]
[341358119,1730831130995,150.0,0.000101,2]
[341358120,1730831131027,150.0,0.000101,2]
[341358121,1730831131059,150.0,0.000101,2]
[341358122,1730831131092,150.0,0.000101,2]
[341358123,1730831131123,150.0,0.000101,2]
[341358124,1730831131154,150.0,0.000101,2]
[341358125,1730831131179,150.0,0.000101,2]
[341358126,1730831131379,150.0,0.000101,2]
[341358127,1730831131400,150.0,0.000101,2]
[341358128,1730831131420,150.0,0.000101,2]
[341358129,1730831131441,150.0,0.000101,2]
[341358130,1730831131460,150.0,0.000101,2]
[341358131,1730831131483,150.0,0.000101,2]
[341358132,1730831131505,150.0,0.000101,2]
[341358133,1730831131526,150.0,0.000101,2]
[341358134,1730831131548,13300.06177282,0.000101,2]
[341358135,1730831137355,150.0,9e-05,2]
[341358136,1730831137375,150.0,9e-05,2]
[341358137,1730831137395,150.0,9e-05,2]
[341358138,1730831137415,150.0,9e-05,2]
[341358139,1730831137435,142.3822493,9e-05,2]
[341358140,1730831138256,-345.18231451,0.00015462,2]
[341358141,1730831138278,-300.0,0.00015699,2]
[341358142,1730831138299,-26258.5536,0.000157,2]
[341358143,1730831138320,-482.3307,0.000157,2]
[341358144,1730831138340,-1000.0,0.000157,2]
[341358145,1730831138361,-654.09216222,0.00015999,2]
[341358146,1730831138382,-151.0,0.00016,2]
[341358147,1730831138404,-151.0,0.00016,2]
[341358148,1730831138425,-151.0,0.00016,2]
[341358149,1730831138445,-151.0,0.00016,2]
[341358150,1730831138466,-151.0,0.00016,2]
[341358151,1730831138490,-156.627496,0.00016,2]
[341358152,1730831138516,-151.0,0.00016,2]
[341358153,1730831138539,-151.0,0.00016,2]
[341358154,1730831138561,-151.0,0.00016,2]
[341358155,1730831138584,-151.0,0.00016,2]
[341358156,1730831138607,-238.553838,0.00016,2]
[341358157,1730831138628,-151.0,0.00016,2]
[341358158,1730831138652,-151.0,0.00016,2]
[341358159,1730831138675,-238.553838,0.00016,2]
[341358160,1730831138697,-151.0,0.00016,2]
[341358161,1730831138718,-156.583968,0.00016,2]
[341358162,1730831138739,-151.0,0.00016,2]
[341358163,1730831138761,-151.0,0.00016,2]
[341358164,1730831138783,-151.0,0.00016,2]
[341358165,1730831138805,-151.0,0.00016,2]
[341358166,1730831138826,-151.0,0.00016,2]
[341358167,1730831138847,-151.0,0.00016,2]
[341358168,1730831138868,-152.90631,0.00016,2]
[341358169,1730831138889,-151.0,0.00016,2]
[341358170,1730831138911,-151.0,0.00016,2]
[341358171,1730831138932,-151.0,0.00016,2]
[341358172,1730831138952,-151.0,0.00016,2]
[341358173,1730831138973,-151.0,0.00016,2]
[341358174,1730831138994,-402.798262,0.00016,2]
[341358175,1730831139016,-160.224773,0.00016,2]
[341358176,1730831139039,-402.798262,0.00016,2]
[341358177,1730831139060,-154.699593,0.00016,2]
[341358178,1730831139081,-153.698127,0.00016,2]
[341358179,1730831139102,-151.0,0.00016,2]
[341358180,1730831139123,-151.0,0.00016,2]
[341358181,1730831139143,-151.0,0.00016,2]
[341358182,1730831139164,-151.0,0.00016,2]
[341358183,1730831139185,-151.0,0.00016,2]
[341358184,1730831139207,-151.0,0.00016,2]
[341358185,1730831139230,-94363.39675627,0.00016,2]
[341358186,1730831170125,150.0,0.0001,2]
[341358187,1730831170147,150.0,0.0001,2]
[341358188,1730831170169,150.0,0.0001,2]
[341358189,1730831170188,150.0,0.0001,2]
[341358190,1730831170210,150.0,0.0001,2]
[341358191,1730831170230,150.0,0.0001,2]
[341358192,1730831170250,3.36194874,0.0001,2]
[341358193,1730831173657,169.0335754,0.00010983,2]
[341358194,1730831173680,45.2286746,0.00010983,2]
[341358231,1730831428988,-1102.03345946,0.0001439,2]
[341358232,1730831429008,-2127.3367772,0.000145,2]
[341358233,1730831429028,-23900.0,0.00014605,2]
[341358247,1730831432318,-251.70953894,0.00015235,2]
[341358251,1730831432765,-414.41485405,0.00015235,2]
[341358252,1730831432774,-158.62,0.00015342,2]
[341358253,1730831432783,-659.76356107,0.000155,2]
[341358254,1730831432795,-1187.81553893,0.000155,2]
[341358255,1730831432805,-300.0,0.00015599,2]
[341358256,1730831432815,-2362.1530767,0.000156,2]
[341358257,1730831432833,-300.0,0.000156,2]
[341358260,1730831436748,-17870.62976334,0.000156,2]
[341358262,1730831438523,-611.86307641,0.000156,2]
[341358263,1730831438948,-3121.66586252,0.000156,2]
[341358264,1730831438964,-7757.75011502,0.000156,2]
[341358265,1730831439031,-3104.75625834,0.000156,2]
[341358273,1730831440444,-8332.0,0.000156,2]
[341358274,1730831440456,-263.56346496,0.000156,2]
[341358275,1730831440678,-1916.00901507,0.000156,2]
[341358276,1730831440771,-333.80779962,0.000156,2]
[341358509,1730831443452,-150.0,0.0001511,2]
[341358511,1730831443462,-6845.2,0.000156,2]
[341358595,1730831444452,-3327.959869,0.000156,2]
[341358706,1730831445510,621.72,0.0001599,3]
[341358798,1730831446522,-8238.03071485,0.000156,2]
[341358810,1730831446631,-35614.61098417,0.000156,2]
[341358812,1730831446642,-7306.2982,0.000156,2]
[341358814,1730831446652,-1000.0,0.000157,2]
[341358816,1730831446661,-839.1782,0.000159,2]
[341358817,1730831446671,-1104.1692,0.000159,2]
[341358819,1730831446679,-736.0917,0.000159,2]
[341358821,1730831446689,-10543.71922485,0.000159,2]
[341358867,1730831447647,-3067.9660055,0.000159,2]
[341359588,1730831455083,497.75001268,0.00015999,5]
[341359591,1730831539229,310.86,0.0001599,3]
[341359592,1730831553764,259.05,0.0001599,3]
[341359593,1730831564900,777.15,0.0001599,3]
[341359594,1730831587591,518.1,0.0001599,3]
[341359617,1730831918127,150.0,0.00016011,5]
[341359618,1730831984880,150.0,0.00013444,2]
[341359619,1730831984902,150.0,0.00013444,2]
[341359620,1730831984923,271.88667158,0.00013444,2]
[341359621,1730831984944,170.85332842,0.00013444,2]
[341359623,1730832159744,388.13,0.00014852,3]
[341359643,1730832494155,-580.64,0.00014382,2]
[341359644,1730832510414,705.6,0.00012562,2]
[341359647,1730832554604,-175.24847086,0.00014343,2]
[341359659,1730832631578,-459.4,0.00014173,2]
[341359660,1730832631588,-1000.0,0.00014237,2]
[341359662,1730832631598,-250.0,0.00014276,2]
[341359663,1730832631607,-200.0,0.00014278,2]
[341359664,1730832631617,-192.8613235,0.00014343,2]
[341359665,1730832631645,-531.89020564,0.00014343,2]
[341359666,1730832631655,-239.53,0.00014437,2]
[341359667,1730832631664,-192.16,0.00014458,2]
[341359668,1730832631674,-4847.96907372,0.00014458,2]
[341359669,1730832631684,-300.0,0.00014523,2]
[341359670,1730832631695,-487.14716709,0.00014524,2]
[341359671,1730832631707,-98.27283291,0.00014524,2]
[341359672,1730832631717,-234.55366636,0.00014524,2]
[341359673,1730832631812,-952.28503528,0.00014524,2]
[341359674,1730832631824,-1376.58129836,0.00014524,2]
[341359675,1730832631833,-273.87371164,0.00014553,2]
[341359676,1730832631845,-941.97173604,0.00014553,2]
[341359697,1730832637962,-20452.7980018,0.00014553,2]
[341359726,1730832639796,-399.9063,0.00014553,2]
[341359730,1730832639931,-1831.45025052,0.00014553,2]
[341359731,1730832639941,-519.59588948,0.00014561,2]
[341359993,1730832642743,-12.84411052,0.00014561,2]
[341359995,1730832642754,-1952.13,0.00014581,2]
[341359997,1730832642764,-3513.63,0.00014621,2]
[341359999,1730832642773,-250.0,0.00014688,2]
[341360001,1730832642783,-157.57,0.00014744,2]
[341360003,1730832642792,-3111.02,0.0001476,2]
[341360005,1730832642802,-286.19,0.0001476,2]
[341360007,1730832642811,-150.0,0.00014796,2]
[341360009,1730832642820,-705.6,0.00014826,2]
[341360011,1730832642829,-1852.42,0.00014852,2]
[341360013,1730832642838,-248.98175969,0.00014935,2]
[341360014,1730832642847,-1617.27,0.00014945,2]
[341360016,1730832642856,-150.0,0.00014997,2]
[341360018,1730832642865,-19405.3,0.00014998,2]
[341360020,1730832642874,-1499.99,0.00015014,2]
[341360022,1730832642883,-150.0,0.00015014,2]
[341360024,1730832642892,-10.04886109,0.00015342,2]
[341360031,1730832642945,-143.50113891,0.00015342,2]
[341360033,1730832642954,-286.19,0.00015498,2]
[341360035,1730832642963,-345.18231451,0.0001567,2]
[341360037,1730832642974,-14231.46575563,0.000158,2]
[341360039,1730832642986,-27983.60424437,0.000158,2]
[341360041,1730832642996,-8555.30821086,0.000158,2]
[341360043,1730832643006,-7216.13115212,0.00015821,2]
[341360045,1730832643017,-4222.59155082,0.00015821,2]
[341360056,1730832643116,-252.0980128,0.00015821,2]
[341360058,1730832643125,-4993.11524307,0.0001586,2]
[341360189,1730832645698,-11232.50218397,0.0001586,2]
[341360190,1730832645709,-569.7443,0.00015899,2]
[341360191,1730832645719,-1000.0,0.00015899,2]
[341360192,1730832645729,-67.04026965,0.000159,2]
[341360193,1730832645739,-3209.4585,0.000159,2]
[341360194,1730832645749,-3826.55474638,0.000159,2]
[341360195,1730832645761,-3511.32938168,0.000159,2]
[341360200,1730832863596,-891.80394645,0.00014285,2]
[341360201,1730832865077,-160.92605355,0.00014285,2]
[341360202,1730832875232,-525.29,0.00014285,2]
[341360204,1730832991990,-225.10649776,0.00014285,2]
[341360209,1730833470707,150.0,0.00013235,2]
[341360210,1730833470728,150.0,0.00013235,2]
[341360211,1730833470748,150.0,0.00013235,2]
[341360212,1730833470769,150.0,0.00013235,2]
[341360213,1730833470789,95.63,0.00013235,2]
[341360261,1730833831787,-200.0,0.00014285,2]
[341360263,1730833831796,-150.0,0.00014672,2]
[341360265,1730833831805,-250.0,0.0001468,2]
[341360267,1730833831815,-1624.12,0.00014744,2]
[341360269,1730833831825,-489.48,0.00014752,2]
[341360272,1730833831834,-505.25605368,0.00014824,2]
[341360274,1730833831844,-175.25,0.00014841,2]
[341360276,1730833831854,-800.0,0.00014855,2]
[341360278,1730833831863,-505.25605367,0.00014902,2]
[341360280,1730833831874,-355.53,0.00014924,2]
[341360282,1730833831884,-685.75,0.00015002,2]
[341360284,1730833831894,-23900.0,0.0001506,2]
[341360286,1730833831904,-385.82,0.0001506,2]
[341360287,1730833831914,-611.75,0.00015082,2]
[341360288,1730833831923,-171.71,0.00015159,2]
[341360289,1730833831933,-202.55,0.0001528,2]
[341360290,1730833831943,-250.0,0.00015302,2]
[341360291,1730833831952,-157.58,0.00015342,2]
[341360292,1730833831962,-157.48,0.00015342,2]
[341360293,1730833831972,-695.63,0.00015499,2]
[341360294,1730833831981,-300.0,0.00015698,2]
[341360295,1730833831991,-406.3214,0.000157,2]
[341360296,1730833832000,-1727.3194,0.000157,2]
[341360297,1730833832010,-7007.0954,0.000157,2]
[341360298,1730833832020,-29152.846,0.000157,2]
[341360299,1730833832030,-6111.5787,0.000157,2]
[341360300,1730833832039,-11131.1384,0.000157,2]
[341360301,1730833832048,-8019.95196652,0.00015713,2]
[341360302,1730833832058,-157.30059214,0.00015713,2]
[341360303,1730833832067,-158.69122756,0.00015773,2]
[341360304,1730833832077,-501.29253559,0.00015773,2]
[341360305,1730833832086,-441.73733715,0.00015799,2]
[341360306,1730833832095,-78261.56493371,0.000158,2]
[341360307,1730833832115,-690.98,0.000158,2]
[341360308,1730833832126,-3201.74576692,0.000158,2]
[341360309,1730833832164,-374.77521645,0.000158,2]
[341360310,1730833832179,-77184.01265,0.000158,2]
[341360316,1730833837855,-291.7635,0.000158,2]
[341360468,1730833839790,-50936.48549964,0.000158,2]
[341360478,1730833839883,-277.07887978,0.000158,2]
[341360494,1730833840024,-10837.94803064,0.000158,2]
[341360512,1730833840183,-636.10200007,0.000158,2]
[341360736,1730833842855,-1520.68882417,0.000158,2]
[341360737,1730833843005,-1825.29723434,0.000158,2]
[341360738,1730833843017,-2734.9,0.000158,2]
[341360739,1730833843043,-16226.65746428,0.000158,2]
[341360740,1730833843052,-178.36,0.00015813,2]
[341360741,1730833843061,-27817.2934,0.000159,2]
[341360742,1730833843071,-4255.5258,0.000159,2]
[341360743,1730833843080,-171.71,0.00015917,2]
[341360744,1730833843089,-690.4148,0.0001592,2]
[341360745,1730833843098,-502.26114535,0.00015973,2]
[341360746,1730833843107,-150.86418129,0.00015973,2]
[341360747,1730833843116,-500.0,0.00015973,2]
[341360748,1730833843126,-750.29849039,0.00015999,2]
[341360749,1730833843135,-171916.68906756,0.00016,2]
[341360751,1730833843144,-2000.0,0.00016011,2]
[341360752,1730833843153,-200.0,0.00016011,2]
[341360753,1730833843162,-2000.0,0.00016011,2]
[341360754,1730833843171,-200.0,0.00016011,2]
[341360756,1730833843180,-200.0,0.00016011,2]
[341360757,1730833843188,-150.0,0.00016051,2]
[341360759,1730833843197,-200.0,0.00016071,2]
[341360760,1730833843206,-2000.0,0.00016171,2]
[341360761,1730833843215,-200.0,0.00016171,2]
[341360763,1730833843225,-200.0,0.00016171,2]
[341360764,1730833843234,-1627.46719894,0.00016333,2]
[341360765,1730833843243,-200.0,0.00016333,2]
[341360766,1730833843252,-200.0,0.00016333,2]
[341360767,1730833843263,-200.0,0.00016496,2]
[341360769,1730833843275,-161.57,0.00016575,2]
[341360770,1730833843284,-308.81,0.00016575,2]
[341360771,1730833843293,-171.71,0.00016674,2]
[341360772,1730833843303,-608.14748702,0.00016711,2]
[341360773,1730833843317,-191.85251298,0.00016711,2]
[341360774,1730833843327,-510.0,0.00016828,2]
[341360775,1730833843339,-308.81,0.0001699,2]
[341360776,1730833843350,-8576.0,0.00017072,2]
[341360777,1730833843361,-308.81,0.00017404,2]
[341360778,1730833843371,-171.71,0.00017432,2]
[341360779,1730833843382,-1190.04199386,0.00017559,2]
[341360780,1730833843393,-1500.0,0.00017568,2]
[341360781,1730833843404,-1306.51037878,0.00017636,2]
[341360782,1730833843538,-193.48962122,0.00017636,2]
[341360783,1730833843569,-150.0,0.00017667,2]
[341360784,1730833843579,-150.0,0.00017669,2]
[341360785,1730833843590,-150.0,0.000177,2]
[341360786,1730833843602,-695.63,0.00017763,2]
[341360787,1730833843612,-150.0,0.00017779,2]
[341360788,1730833843623,-308.81,0.00017818,2]
[341360789,1730833843632,-297.91348412,0.00017821,2]
[341360790,1730833843641,-154.45694251,0.00017834,2]
[341360791,1730833843650,-150.0,0.00017837,2]
[341360792,1730833843659,-200.0,0.00017856,2]
[341360793,1730833843668,-238.22857398,0.0001794,5]
[341360794,1730833843677,-1041.93034767,0.00018,2]
[341360795,1730833843686,-183.0,0.00018037,2]
[341360796,1730833843695,-171.71,0.0001819,2]
[341360797,1730833843705,-161.57,0.00018233,2]
[341360798,1730833843715,-308.81,0.00018233,2]
[341360799,1730833843725,-288.37,0.00018307,2]
[341360800,1730833843734,-1630.8774774,0.00018356,2]
[341360807,1730833846285,-725.9125226,0.00018356,2]
[341360808,1730833846295,-200.0,0.00018438,2]
[341360809,1730833846304,-800.0,0.00018568,2]
[341360810,1730833846314,-504.885684,0.00019,2]
[341360811,1730833846462,-8019.95196644,0.00019161,2]
[341360812,1730833846474,-2074.49,0.00019408,2]
[341360813,1730833846483,-200.0,0.00019642,2]
[341360814,1730833846493,-160.57,0.00019673,2]
[341360815,1730833846503,-1023.06,0.00019726,2]
[341360817,1730833846513,-157.30059208,0.00019883,2]
[341360818,1730833846523,-1023.06,0.00019974,2]
[341360819,1730833846532,-380.84365324,0.0002,2]
[341360820,1730833846542,-3473.85758611,0.0002,2]
[341360821,1730833846551,-500.0,0.0002,2]
[341360822,1730833846561,-695.63,0.00020027,2]
[341360823,1730833846571,-1023.06,0.00020222,2]
[341360824,1730833846582,-800.0,0.00020425,2]
[341360825,1730833846591,-400.02067046,0.0002046,2]
[341360826,1730833846601,-1023.06,0.0002047,2]
[341360827,1730833846611,-1023.06,0.00020718,2]
[341360828,1730833846620,-1023.06,0.00020966,2]
[341360829,1730833846630,-11948.38984773,0.00021,2]
[341360830,1730833846640,-250.0,0.00021,2]
[341360831,1730833846649,-151.0,0.00021,2]
[341360832,1730833846660,-151.0,0.00021,2]
[341360833,1730833846670,-151.0,0.00021,2]
[341360834,1730833846679,-157.952,0.00021,5]
[341360835,1730833846689,-611.75,0.00021114,2]
[341360836,1730833846698,-1023.06,0.00021214,2]
[341360837,1730833846707,-200.0,0.00021427,2]
[341360838,1730833846716,-1023.06,0.00021462,2]
[341360839,1730833846725,-192.16,0.00021687,2]
[341360840,1730833846735,-158.141,0.0002184,3]
[341360841,1730833846744,-380.98,0.00021918,2]
[341360842,1730833846753,-250.0,0.00021918,2]
[341360843,1730833846762,-172.52,0.00021918,2]
[341360844,1730833846771,-167.55,0.00021918,2]
[341360845,1730833846780,-500.0,0.00021999,2]
[341360846,1730833846790,-556.79576991,0.00021999,2]
[341360847,1730833846799,-64307.95535382,0.00022,2]
[341360848,1730833846809,-224.071362,0.00022,7]
[341360849,1730833846818,-151.0,0.00022,7]
[341360850,1730833846828,-151.0,0.00022,7]
[341360851,1730833846837,-151.0,0.00022,7]
[341360852,1730833846846,-151.0,0.00022,7]
[341360853,1730833846855,-156.379386,0.00022,7]
[341360854,1730833846864,-362.518436,0.00022,7]
[341360855,1730833846873,-362.518436,0.00022,7]
[341360856,1730833846882,-151.0,0.00022,7]
[341360857,1730833846891,-151.0,0.00022,7]
[341360858,1730833846902,-151.0,0.00022,7]
[341360859,1730833846911,-151.0,0.00022,7]
[341360860,1730833846920,-151.0,0.00022,7]
[341360861,1730833846929,-151.0,0.00022,7]
[341360862,1730833846938,-151.0,0.00022,7]
[341360863,1730833846947,-151.0,0.00022,7]
[341360864,1730833846956,-151.0,0.00022,7]
[341360865,1730833846965,-151.0,0.00022,7]
[341360866,1730833846974,-151.0,0.00022,7]
[341360867,1730833846984,-151.0,0.00022,7]
[341360868,1730833846993,-151.0,0.00022,7]
[341360869,1730833847002,-151.0,0.00022,7]
[341360870,1730833847011,-154.084769,0.00022,7]
[341360871,1730833847020,-800.0,0.00022282,2]
[341360872,1730833847030,-695.63,0.00022291,2]
[341360873,1730833847039,-151.0,0.000226,7]
[341360874,1730833847048,-152.904272,0.000226,7]
[341360875,1730833847057,-288.982211,0.000226,7]
[341360876,1730833847066,-151.0,0.000226,7]
[341360877,1730833847075,-151.0,0.000226,7]
[341360878,1730833847085,-153.340009,0.000226,7]
[341360879,1730833847094,-151.0,0.000226,7]
[341360880,1730833847103,-263.674372,0.000226,7]
[341360881,1730833847112,-151.0,0.000226,7]
[341360882,1730833847122,-162.836312,0.000226,7]
[341360883,1730833847131,-193.261219,0.000226,7]
[341360884,1730833847140,-151.0,0.000226,7]
[341360885,1730833847149,-151.0,0.000226,7]
[341360886,1730833847159,-151.0,0.000226,7]
[341360887,1730833847168,-151.0,0.000226,7]
[341360888,1730833847177,-151.0,0.000226,7]
[341360889,1730833847186,-151.0,0.000226,7]
[341360890,1730833847195,-159.860899,0.000226,7]
[341360891,1730833847204,-151.0,0.000226,7]
[341360892,1730833847214,-8019.95196644,0.0002261,2]
[341360893,1730833847223,-151.0,0.00022945,7]
[341360894,1730833847232,-151.0,0.00022945,7]
[341360895,1730833847241,-256.926171,0.00022945,7]
[341360896,1730833847250,-153.55,0.00022945,2]
[341360897,1730833847259,-300.0,0.00023,2]
[341360898,1730833847272,-151.0,0.00023172,7]
[341360899,1730833847281,-159.922362,0.00023172,7]
[341360900,1730833847290,-151.0,0.00023172,7]
[341360901,1730833847299,-151.0,0.00023172,7]
[341360902,1730833847309,-151.0,0.00023172,7]
[341360903,1730833847318,-280.442836,0.00023172,7]
[341360904,1730833847327,-500.0,0.00023188,2]
[341360905,1730833847336,-501.44920752,0.00023188,2]
[341360906,1730833847347,-303.84623959,0.00023188,2]
[341360907,1730833847356,-150.0,0.00023405,2]
[341360908,1730833847365,-1500.0,0.00023409,2]
[341360909,1730833847374,-150.0,0.0002341,2]
[341360910,1730833847383,-150.0,0.00023411,2]
[341360911,1730833847392,-150.0,0.00023411,2]
[341360912,1730833847401,-150.0,0.00023413,2]
[341360913,1730833847410,-150.0,0.00023415,2]
[341360914,1730833847420,-150.0,0.00023416,2]
[341360915,1730833847429,-150.0,0.00023417,2]
[341360916,1730833847438,-150.0,0.00023419,2]
[341360917,1730833847447,-150.0,0.0002342,2]
[341360918,1730833847456,-150.0,0.0002343,2]
[341360919,1730833847465,-150.0,0.00023431,2]
[341360920,1730833847475,-150.0,0.00023434,2]
[341360921,1730833847485,-150.0,0.00023437,2]
[341360922,1730833847494,-150.0,0.00023438,2]
[341360923,1730833847503,-150.0,0.0002344,2]
[341360924,1730833847512,-150.0,0.00023442,2]
[341360925,1730833847521,-150.0,0.00023444,2]
[341360926,1730833847531,-150.0,0.00023451,2]
[341360927,1730833847540,-150.0,0.00023451,2]
[341360928,1730833847549,-150.0,0.00023477,2]
[341360929,1730833847558,-150.0,0.00023485,2]
[341360930,1730833847567,-150.0,0.00023492,2]
[341360931,1730833847576,-150.0,0.00023493,2]
[341360932,1730833847584,-150.0,0.00023495,2]
[341360933,1730833847593,-150.0,0.00023496,2]
[341360934,1730833847602,-150.0,0.00023496,2]
[341360935,1730833847611,-150.0,0.00023499,2]
[341360936,1730833847621,-1012.0,0.000235,2]
[341360937,1730833847630,-150.0,0.00023501,2]
[341360938,1730833847639,-150.0,0.00023506,2]
[341360939,1730833847647,-150.0,0.00023508,2]
[341360940,1730833847659,-150.0,0.00023509,2]
[341360941,1730833847669,-150.0,0.00023517,2]
[341360942,1730833847678,-150.0,0.00023518,2]
[341360943,1730833847687,-152.05071458,0.0002352,2]
[341360944,1730833847696,-150.0,0.00023522,2]
[341360945,1730833847705,-150.0,0.00023527,2]
[341360946,1730833847714,-150.0,0.0002353,2]
[341360947,1730833847723,-150.0,0.00023533,2]
[341360948,1730833847732,-150.0,0.00023539,2]
[341360949,1730833847741,-150.0,0.0002355,2]
[341360950,1730833847750,-150.0,0.00023551,2]
[341360951,1730833847759,-150.0,0.00023554,2]
[341360952,1730833847768,-150.0,0.00023555,2]
[341360953,1730833847777,-150.0,0.00023561,2]
[341360954,1730833847787,-150.0,0.00023564,2]
[341360955,1730833847796,-150.0,0.00023568,2]
[341360956,1730833847805,-150.0,0.00023568,2]
[341360957,1730833847814,-150.0,0.00023569,2]
[341360958,1730833847823,-150.0,0.00023569,2]
[341360959,1730833847832,-150.0,0.0002357,2]
[341360960,1730833847841,-150.0,0.00023573,2]
[341360961,1730833847851,-150.0,0.00023574,2]
[341360962,1730833847860,-150.0,0.00023578,2]
[341360963,1730833847870,-150.0,0.0002358,2]
[341360964,1730833847879,-150.0,0.00023582,2]
[341360965,1730833847888,-150.0,0.00023585,2]
[341360966,1730833847897,-150.0,0.00023591,2]
[341360967,1730833847908,-150.0,0.00023593,2]
[341360968,1730833847917,-150.0,0.00023595,2]
[341360969,1730833847927,-150.0,0.00023596,2]
[341360970,1730833847936,-150.0,0.00023597,2]